{"text_format":"2","workbook":"xlsx","n_sheets":6,"sheets":["Estimativa","Planilha","Manutenção","Manutenção Preventiva","Composição","BDI"],"not_rendered":{"charts":0,"images":0,"macros":0,"external_links":0,"defined_names":3,"comments":0,"pivot_tables":0},"unopened":[],"bounds":{"document_bytes":16777216,"sheet_cells":100000,"run_cost":"one","rows_first":2000,"rows_last":500,"rows_between":2000,"halvings":0,"cell_chars":16384,"cell_head_chars":4096},"cells_cut":0,"cells_raw":0,"read":"whole","date_system":"1900"}

{"sheet":"Estimativa","index":0,"n_rows":26,"n_cols":21,"rows_kept":26,"cut":false,"hidden":false,"merged":[[16,0,16,12],[17,0,17,12],[18,0,18,12],[19,0,19,12],[2,0,2,12],[8,0,8,11],[11,0,11,12],[12,0,12,12],[13,0,13,12],[14,0,14,12],[15,0,15,12]]}
[]
[]
["Quadro - 1  VALOR ANUAL MÁXIMO ESTIMADO PARA MANUTENÇÕES",{"$nulls":16},"Guraita",7.84]
["Unidade","Ano de Inauguração","Idade das\nUnidades (anos)","Área do Terreno (m²)","Área Construída (m²)","CUB (R$/m²)","Base de Calculo IPTU","Valor do imóvel utilizado (R$)","Valor estimado para manutenção - IN RFB nº 1700/2017 - (R$)","Ano da Ultima Reforma","Percentual anual de obsolescência do imóvel (%)","Acréscimo anual sobre o valor de obsolescência do imóvel (R$)","Valor anual máximo estimado para manutenção (R$)",{"$nulls":4},"predio",{"$f":"179*2","v":358}]
["4ª/SR",1987,{"$f":"2023-B5","v":36},10626.03,2656.68,2130.92,9962010.1899999995,{"$f":"G5","v":9962010.1899999995},{"$f":"ROUND(H5*4%,2)","v":398480.41},2013,1.4999999999999999E-2,{"$f":"ROUND(H5*K5,2)","v":149430.15},{"$f":"I5+L5","v":547910.55999999994},{"$nulls":4},"auditorio",283,null,{"$f":"D8/10000","v":67.431505000000001}]
["4ª/EPR",1975,{"$f":"2023-B6","v":48},315,285.62,2014.98,224000,{"$f":"G6","v":224000},{"$f":"ROUND(H6*4%,2)","v":8960},2020,8.0000000000000002E-3,{"$f":"ROUND(H6*K6,2)","v":1792},{"$f":"I6+L6","v":10752},{"$nulls":4},"alojamento",367,null,{"$f":"U5*15000","v":1011472.5750000001}]
["4ª/UEM",1986,37,31110.83,2026.65,1759.29,"x",{"$f":"E7*F7+((D7-E7)/10000*20000)","v":3623633.4385000002},144945.34,2019,8.9999999999999993E-3,32612.7,177558.04,{"$nulls":4},"hipo",416]
["4ª/CIB ",1983,40,674315.05,{"$f":"S15","v":3060.84},1759.29,"x",{"$f":"E8*F8+((D8-E8)/10000*20000)","v":6727413.6236000005},269096.53999999998,2013,1.4999999999999999E-2,100911.2,370007.74,{"$nulls":4},"pisicna",343]
["TOTAL ESTIMADO ANUAL DE MANUTENÇÃO",{"$nulls":11},{"$f":"SUM(M5:M8)","v":1106228.3399999999},{"$nulls":4},"casa",460]
[{"$nulls":17},"gaplão ração",{"$f":"12*35","v":420}]
[{"$nulls":17},"captação",{"$f":"8*5","v":40}]
["1 – As fontes para se estabelecer o “Valor do imóvel (R$)” foram: Área Construída imóveis x CUB/m2 ou a base do de cálculo do IPTU",{"$nulls":16},"galpão projeto amanha",{"$f":"15*19","v":285}]
["2 – O Percentual anual de obsolescência do imóvel (%) foi estabelecido com o seguinte critério: o mínimo corresponderia a 0,5%, sendo acrescido de 0,1% a cada ano entre a última reforma do imóvel e o atual exercício, limitado ao percentual de 1,5% ao ano",{"$nulls":16},"casinha viveiro",{"$f":"9*9","v":81}]
["3 – A fórmula de cálculo para os itens abaixo são: "]
["3.1 – “Valor estimado para manutenção - IN RFB nº 1700/2017 - (R$)”: “Valor do imóvel (R$)” x 4%",{"$nulls":16},"total",{"$f":"SUM(S3:S13)","v":3060.84}]
["3.2 – “Acréscimo anual sobre o valor de obsolescência do imóvel (R$)”: “Valor estimado para manutenção - IN RFB nº 1700/2017 - (R$)” x “Percentual anual de obsolescência do imóvel (%)”. "]
["3.3 – “Valor anual máximo estimado para manutenção (R$)”: “Valor estimado para manutenção - IN RFB nº 1700/2017 - (R$)” + “Acréscimo anual sobre o valor de obsolescência do imóvel (R$)”"]
["4 – Ressalta-se que os cálculos de cada Unidade foram realizados separadamente somente para esclarecer a metodologia para estimativa do valor total da contratação, não sendo de caráter restritivo em relação ao que poderá ser aplicado em cada Unidade quando houver necessidade de realização de obras/serviços. Em outras palavras, a 4ª SR/Codevasf poderá realizar obras/serviços objeto do Termo de Referência em qualquer Unidade em valor limitado ao total estimado do contrato."]
["5- Para o valor do 4ºCIB e da 4ºUEM, foi estimado que cada hectare custa R$20.000.00. Além do CUB aplicado na área dos prédios. "]
["6- Para o 4º CIB, foram inclusos os prédio do Galpão do Projeto Amanhã, Viveiro de Mudas, Auditório, Prédio da Captação, Guarita, Alojamento..."]
[]
[]
[]
[]
[]
[{"$nulls":7},{"$f":"45+113+45","v":203}]

{"sheet":"Planilha","index":1,"n_rows":8,"n_cols":9,"rows_kept":8,"cut":false,"hidden":false,"merged":[[2,1,2,8],[0,0,0,8]]}
[]
[]
[null,"CONSTITUIÇÃO DE SISTEMA DE REGISTRO DE PREÇOS PARA CONTRATAÇÃO DE EMPRESA ESPECIALIZADA PARA PRESTAÇÃO DE SERVIÇOS DE MANUTENÇÃO PREDIAL, PREVENTIVA E CORRETIVA, DE EQUIPAMENTOS DE CLIMATIZAÇÃO, MATERIAIS E MÃO-DE-OBRA, NAS EDIFICAÇÕES DA CODEVASF – 4ªSR, SITUADAS NOS MUNICÍPIOS DE ARACAJU, PROPRIÁ E NEÓPOLIS, NO ESTADO DE SERGIPE"]
[{"$nulls":7},"Data-base:","2023-10-01"]
[{"$nulls":7},"BDI:",{"$f":"BDI!C29","v":0.2354}]
[]
["CATSERV"," DISCRIMINAÇÃO ","UNIDADE","QUANTIDADE","CUSTO TOTAL\n(CODEVASF)","PREÇO TOTAL\n(CODEVASF)","CUSTO TOTAL (CONTRATADA)","PREÇO TOTAL (CONTRATADA)","DESCONTO (%)"]
[1627,"Manutenção predial, preventiva e corretiva, de equipamentos, de climatização, materiais e mão-de-obra, descritos na tabela SINAPI/SE, nas edificações da Codevasf – 4ªSR, situadas nos municípios de Aracaju, Propriá e Neópolis, no estado de Sergipe.","un",1,{"$f":"F8*100%/(100%+I5)","v":895441.42787761032},{"$f":"Estimativa!M9","v":1106228.3399999999},{"$f":"E8+(E8*I8)","v":895441.42787761032},{"$f":"G8*(100%+I5)","v":1106228.3399999999},0]

{"sheet":"Manutenção","index":2,"n_rows":10,"n_cols":7,"rows_kept":10,"cut":false,"hidden":false,"merged":[[0,0,0,6],[2,0,2,6],[9,0,9,4]]}
[]
[]
["CONSTITUIÇÃO DE SISTEMA DE REGISTRO DE PREÇOS PARA CONTRATAÇÃO DE EMPRESA ESPECIALIZADA PARA PRESTAÇÃO DE SERVIÇOS DE MANUTENÇÃO PREDIAL, PREVENTIVA E CORRETIVA, DE EQUIPAMENTOS DE CLIMATIZAÇÃO, MATERIAIS E MÃO-DE-OBRA, NAS EDIFICAÇÕES DA CODEVASF – 4ªSR, SITUADAS NOS MUNICÍPIOS DE ARACAJU, PROPRIÁ E NEÓPOLIS, NO ESTADO DE SERGIPE"]
[{"$nulls":5},"Data-base:","2023-10-01"]
[{"$nulls":5},"BDI Serviços:",{"$f":"BDI!C29","v":0.2354}]
[{"$nulls":5},"Prazo de Execução:","12 Meses"]
[" DISCRIMINAÇÃO ","UNIDADE","QUANTIDADE","Valor Unitário","Valor Unitário c/ BDI","Valor Total","Percentual (%)"]
["Manutenção preventiva, conforme composição","vb",1,{"$f":"106130.08","v":106130.08},{"$f":"D8*$G$5+D8","v":131113.100832},{"$f":"E8*C8","v":131113.100832},{"$f":"F8/F10","v":0.11852263776934156}]
["Prestação de serviços de manutenção predial com fornecimento de peças, equipamentos, materiais e mão de obra, na forma estabelecida nas planilhas de serviços e insumos diversos descritos no Sistema Nacional de Pesquisa de Custos e Índices da Construção Civil (SINAPI-SE), nas edificações da 4ª Superintendência Regional da CODEVASF-4ªSR, conforme critérios e condições estabelecidos no Termo de Referência","vb",1,{"$f":"Planilha!E8-SUM(D8:D8)","v":789311.34787761036},{"$f":"D9*$G$5+D9","v":975115.23916799983},{"$f":"E9*C9","v":975115.23916799983},{"$f":"F9/F10","v":0.88147736223065842}]
[{"$nulls":5},{"$f":"SUM(F8:F9)","v":1106228.3399999999},{"$f":"SUM(G8:G9)","v":1}]

{"sheet":"Manutenção Preventiva","index":3,"n_rows":18,"n_cols":10,"rows_kept":18,"cut":false,"hidden":false,"merged":[[14,5,14,6],[14,7,14,9],[18,0,18,9],[0,4,0,5],[0,6,0,7],[0,8,0,9],[1,4,1,5],[1,6,1,7],[1,8,1,9],[15,0,15,2],[15,5,15,6],[15,7,15,9],[17,0,17,9],[2,0,2,9],[13,0,13,2],[13,5,13,6],[13,7,13,9],[14,0,14,2]]}
[null,null,null,"Obra","Bancos",null,"B.D.I.",null,"Encargos Sociais"]
[null,null,null,"Manutenção Preventiva - 4ªSR","SINAPI - 08/2023 - Sergipe\nSBC - 10/2023 - Sergipe\nSICRO3 - 04/2023 - Sergipe\nSICRO2 - 11/2016 - Sergipe\nORSE - 08/2023 - Sergipe\n",null,0.2354,null,"Não Desonerado: embutido nos preços unitário dos insumos de mão de obra, de acordo com as bases."]
["Orçamento Sintético"]
["Item","Código","Banco","Descrição","Und","Quant.","Valor Unit","Valor Unit com BDI","Total","Peso (%)"]
[" 1 "," CODEVASF  024 ","Próprio","Limpeza e desinfecção química de reservatório","und",12,185.85,{"$f":"G5*$G$2+G5","v":229.59908999999999},{"$f":"ROUND(F5*H5,2)","v":2755.19},{"$f":"I5/$H$16","v":2.1013842114300428E-2}]
[" 2 "," CODEVASF  027 ","Próprio","Pedreiro, jornada de 16h/semana em horário comercial, para execução manutenções preventivas (inclusive ferramentas, com fornecimento de materiais básicos)","Mês",12,1743.57,{"$f":"G6*$G$2+G6","v":2154.006378},{"$f":"ROUND(F6*H6,2)","v":25848.080000000002},{"$f":"I6/$H$16","v":0.19714338106548246}]
[" 5 "," CODEVASF  028 ","Próprio","Realização de vistoria e elaboração de plano anual de manutenção das edificações","UNID",4,2326.2399999999998,2873.8368959999998,11495.35,8.7675067762522166E-2]
[" 6 "," CODEVASF  026 ","Próprio","Bombeiro/Encanador Hidraulico, jornada de 16h/semana em horário comercial, para execução manutenções preventivas (inclusive ferramentas, com fornecimento de materiais básicos).","Mês",12,1708.26,2110.3844039999999,25324.61,0.19315087385851204]
[" 7 "," CODEVASF  025 ","Próprio","Eletricista, jornada de 16h/semana em horário comercial, para execução manutenções preventivas (inclusive ferramentas, com fornecimento de materiais básicos)","Mês",12,1772.08,2189.2276320000001,26270.73,0.20036693384028531]
[" 8 "," 12637 ","ORSE","Limpeza de fossa até 5m3","un",6,350,432.39,2594.34,1.9787038698171153E-2]
[" 9 "," 90778 ","SINAPI","ENGENHEIRO CIVIL DE OBRA PLENO COM ENCARGOS COMPLEMENTARES","H",192,126.84,156.69813600000001,30086.04,0.22946631426672109]
[" 10 "," 90776 ","SINAPI","ENCARREGADO GERAL COM ENCARGOS COMPLEMENTARES","H",192,28.41,35.097713999999996,6738.76,5.139654204833901E-2]
[]
[{"$nulls":5},"Total sem BDI",null,{"$f":"F5*G5+F6*G6+F7*G7+F8*G8+F9*G9+F10*G10+F11*G11+F12*G12","v":106130.07999999999}]
[{"$nulls":5},"Total do BDI",null,{"$f":"H14*G2","v":24983.020831999998}]
[{"$nulls":5},"Total Geral",null,{"$f":"H15+H14","v":131113.100832}]
[]
["_______________________________________________________________\nMorgane de Aguiar Chagas\nSetor de Engenharia"]

{"sheet":"Composição","index":4,"n_rows":88,"n_cols":10,"rows_kept":88,"cut":false,"hidden":false,"merged":[[0,2,0,3],[0,4,0,5],[0,6,0,7],[0,8,0,9],[1,2,1,3],[1,4,1,5],[85,0,85,2],[85,5,85,6],[85,7,85,9],[87,0,87,9],[83,0,83,2],[83,5,83,6],[83,7,83,9],[84,0,84,2],[84,5,84,6],[84,7,84,9],[74,4,74,5],[75,4,75,5],[76,4,76,5],[77,4,77,5],[79,7,79,8],[67,7,67,8],[70,4,70,5],[71,4,71,5],[72,4,72,5],[73,4,73,5],[61,4,61,5],[62,4,62,5],[63,4,63,5],[64,4,64,5],[65,4,65,5],[53,4,53,5],[55,7,55,8],[58,4,58,5],[59,4,59,5],[60,4,60,5],[45,4,45,5],[46,4,46,5],[48,7,48,8],[51,4,51,5],[52,4,52,5],[37,4,37,5],[39,7,39,8],[42,4,42,5],[43,4,43,5],[44,4,44,5],[32,4,32,5],[33,4,33,5],[34,4,34,5],[35,4,35,5],[36,4,36,5],[24,4,24,5],[25,4,25,5],[26,4,26,5],[27,4,27,5],[29,7,29,8],[16,4,16,5],[17,4,17,5],[19,7,19,8],[22,4,22,5],[23,4,23,5],[1,6,1,7],[1,8,1,9],[14,4,14,5],[15,4,15,5],[3,0,3,9],[4,4,4,5],[5,4,5,5],[6,4,6,5],[7,4,7,5],[8,4,8,5],[9,4,9,5],[11,7,11,8]]}
[null,null,"Obra",null,"Bancos",null,"B.D.I.",null,"Encargos Sociais"]
[null,null,"Manutenção Preventiva - 4ªSR",null,"SINAPI - 08/2023 - Sergipe\nSBC - 10/2023 - Sergipe\nSICRO3 - 04/2023 - Sergipe\nSICRO2 - 11/2016 - Sergipe\nORSE - 08/2023 - Sergipe\n",null,"23,54%",null,"Não Desonerado: embutido nos preços unitário dos insumos de mão de obra, de acordo com as bases."]
[]
["Planilha Orçamentária Analítica"]
[" 1 ","Código","Banco","Descrição","Tipo",null,"Und","Quant.","Valor Unit","Total"]
["Composição"," CODEVASF  024 ","Próprio","Limpeza e desinfecção química de reservatório","INHI - INSTALAÇÕES HIDROS SANITÁRIAS",null,"und",1,185.85,185.85]
["Insumo"," 00002696 ","SINAPI","ENCANADOR OU BOMBEIRO HIDRAULICO (HORISTA)","Mão de Obra",null,"H",5,18.16,90.8]
["Insumo"," 00000246 ","SINAPI","AUXILIAR DE ENCANADOR OU BOMBEIRO HIDRAULICO (HORISTA)","Mão de Obra",null,"H",5,12.92,64.599999999999994]
["Insumo"," 00000012 ","SINAPI","ESCOVA DE ACO, COM CABO, *4  X 15* FILEIRAS DE CERDAS","Material",null,"UN",1,10.95,10.95]
["Insumo"," 615 ","ORSE","Cloro líquido para limpeza e desinfecção l","Material",null,"l",3,6.5,19.5]
[{"$nulls":4},"MO sem LS =>",155.4,"LS =>",0,"MO com LS =>",155.4]
[{"$nulls":4},"Valor do BDI =>",43.749090000000002,null,"Valor com BDI =>",null,229.6]
[{"$nulls":6},"Quant. =>",12,"Preço Total =>",2755.2]
[]
[" 2 ","Código","Banco","Descrição","Tipo",null,"Und","Quant.","Valor Unit","Total"]
["Composição"," CODEVASF  027 ","Próprio","Pedreiro, jornada de 16h/semana em horário comercial, para execução manutenções preventivas (inclusive ferramentas, com fornecimento de materiais básicos)","SEOP - SERVIÇOS OPERACIONAIS",null,"Mês",1,1743.57,1743.57]
["Composição Auxiliar"," 88309 ","SINAPI","PEDREIRO COM ENCARGOS COMPLEMENTARES","SEDI - SERVIÇOS DIVERSOS",null,"H",64,27.22,1742.08]
["Insumo"," 00034353 ","SINAPI","ARGAMASSA COLANTE AC II","Material",null,"KG",1,1.49,1.49]
[{"$nulls":4},"MO sem LS =>",1187.8399999999999,"LS =>",0,"MO com LS =>",1187.8399999999999]
[{"$nulls":4},"Valor do BDI =>",410.43637799999999,null,"Valor com BDI =>",null,2154.0100000000002]
[{"$nulls":6},"Quant. =>",12,"Preço Total =>",25848.12]
[]
[" 5 ","Código","Banco","Descrição","Tipo",null,"Und","Quant.","Valor Unit","Total"]
["Composição"," CODEVASF  028 ","Próprio","Realização de vistoria e elaboração de plano anual de manutenção das edificações","SEES - SERVIÇOS ESPECIAIS",null,"UNID",1,2326.2399999999998,2326.2399999999998]
["Insumo"," 00002707 ","SINAPI","ENGENHEIRO CIVIL DE OBRA PLENO","Mão de Obra",null,"H",8,123,984]
["Insumo"," 00034783 ","SINAPI","ENGENHEIRO ELETRICISTA","Mão de Obra",null,"H",8,142.18,1137.44]
["Insumo"," 00004083 ","SINAPI","ENCARREGADO GERAL DE OBRAS (HORISTA)","Mão de Obra",null,"H",4,25.36,101.44]
["Insumo"," 00002350 ","SINAPI","AUXILIAR DE ESCRITORIO (HORISTA)","Mão de Obra",null,"H",8,12.92,103.36]
[{"$nulls":4},"MO sem LS =>",2326.2399999999998,"LS =>",0,"MO com LS =>",2326.2399999999998]
[{"$nulls":4},"Valor do BDI =>",547.59689600000002,null,"Valor com BDI =>",null,2873.84]
[{"$nulls":6},"Quant. =>",4,"Preço Total =>",11495.36]
[]
[" 6 ","Código","Banco","Descrição","Tipo",null,"Und","Quant.","Valor Unit","Total"]
["Composição"," CODEVASF  026 ","Próprio","Bombeiro/Encanador Hidraulico, jornada de 16h/semana em horário comercial, para execução manutenções preventivas (inclusive ferramentas, com fornecimento de materiais básicos).","ASTU - ASSENTAMENTO DE TUBOS E PECAS",null,"Mês",1,1708.26,1708.26]
["Composição Auxiliar"," 88267 ","SINAPI","ENCANADOR OU BOMBEIRO HIDRÁULICO COM ENCARGOS COMPLEMENTARES","SEDI - SERVIÇOS DIVERSOS",null,"H",64,26.48,1694.72]
["Insumo"," 00003146 ","SINAPI","FITA VEDA ROSCA EM ROLOS DE 18 MM X 10 M (L X C)","Material",null,"UN",1,3.1,3.1]
["Insumo"," 00038383 ","SINAPI","LIXA D'AGUA EM FOLHA, GRAO 100","Material",null,"UN",1,2.54,2.54]
["Insumo"," 00000119 ","SINAPI","ADESIVO PLASTICO PARA PVC, BISNAGA COM 75 GR","Material",null,"UN",1,7.9,7.9]
[{"$nulls":4},"MO sem LS =>",1184,"LS =>",0,"MO com LS =>",1184]
[{"$nulls":4},"Valor do BDI =>",402.12440400000003,null,"Valor com BDI =>",null,2110.38]
[{"$nulls":6},"Quant. =>",12,"Preço Total =>",25324.560000000001]
[]
[" 7 ","Código","Banco","Descrição","Tipo",null,"Und","Quant.","Valor Unit","Total"]
["Composição"," CODEVASF  025 ","Próprio","Eletricista, jornada de 16h/semana em horário comercial, para execução manutenções preventivas (inclusive ferramentas, com fornecimento de materiais básicos)","INEL - INSTALAÇÃO ELÉTRICA/ELETRIFICAÇÃO E ILUMINAÇÃO EXTERNA",null,"Mês",1,1772.08,1772.08]
["Composição Auxiliar"," 88264 ","SINAPI","ELETRICISTA COM ENCARGOS COMPLEMENTARES","SEDI - SERVIÇOS DIVERSOS",null,"H",64,27.52,1761.28]
["Insumo"," 00021127 ","SINAPI","FITA ISOLANTE ADESIVA ANTICHAMA, USO ATE 750 V, EM ROLO DE 19 MM X 5 M","Material",null,"UN",2,3.97,7.94]
["Insumo"," 00000404 ","SINAPI","FITA ISOLANTE DE BORRACHA AUTOFUSAO, USO ATE 69 KV (ALTA TENSAO)","Material",null,"M",2,1.43,2.86]
[{"$nulls":4},"MO sem LS =>",1207.68,"LS =>",0,"MO com LS =>",1207.68]
[{"$nulls":4},"Valor do BDI =>",417.14763199999999,null,"Valor com BDI =>",null,2189.23]
[{"$nulls":6},"Quant. =>",12,"Preço Total =>",26270.76]
[]
[" 8 ","Código","Banco","Descrição","Tipo",null,"Und","Quant.","Valor Unit","Total"]
["Composição"," 12637 ","ORSE","Limpeza de fossa até 5m3","Fossas Sépticas",null,"un",1,350,350]
["Insumo"," 13425 ","ORSE","Limpeza de fossa até 5m3 un","Serviços",null,"un",1,350,350]
[{"$nulls":4},"MO sem LS =>",0,"LS =>",0,"MO com LS =>",0]
[{"$nulls":4},"Valor do BDI =>",82.39,null,"Valor com BDI =>",null,432.39]
[{"$nulls":6},"Quant. =>",6,"Preço Total =>",2594.34]
[]
[" 9 ","Código","Banco","Descrição","Tipo",null,"Und","Quant.","Valor Unit","Total"]
["Composição"," 90778 ","SINAPI","ENGENHEIRO CIVIL DE OBRA PLENO COM ENCARGOS COMPLEMENTARES","SEDI - SERVIÇOS DIVERSOS",null,"H",1,126.84,126.84]
["Composição Auxiliar"," 95403 ","SINAPI","CURSO DE CAPACITAÇÃO PARA ENGENHEIRO CIVIL DE OBRA PLENO (ENCARGOS COMPLEMENTARES) - HORISTA","SEDI - SERVIÇOS DIVERSOS",null,"H",1,1.91,1.91]
["Insumo"," 00002707 ","SINAPI","ENGENHEIRO CIVIL DE OBRA PLENO","Mão de Obra",null,"H",1,123,123]
["Insumo"," 00037372 ","SINAPI","EXAMES - HORISTA (COLETADO CAIXA - ENCARGOS COMPLEMENTARES)","Outros",null,"H",1,1.1399999999999999,1.1399999999999999]
["Insumo"," 00037373 ","SINAPI","SEGURO - HORISTA (COLETADO CAIXA - ENCARGOS COMPLEMENTARES)","Taxas",null,"H",1,7.0000000000000007E-2,7.0000000000000007E-2]
["Insumo"," 00043462 ","SINAPI","FERRAMENTAS - FAMILIA ENGENHEIRO CIVIL - HORISTA (ENCARGOS COMPLEMENTARES - COLETADO CAIXA)","Equipamento",null,"H",1,0.01,0.01]
["Insumo"," 00043486 ","SINAPI","EPI - FAMILIA ENGENHEIRO CIVIL - HORISTA (ENCARGOS COMPLEMENTARES - COLETADO CAIXA)","Equipamento",null,"H",1,0.71,0.71]
[{"$nulls":4},"MO sem LS =>",124.91,"LS =>",0,"MO com LS =>",124.91]
[{"$nulls":4},"Valor do BDI =>",29.858135999999998,null,"Valor com BDI =>",null,156.69999999999999]
[{"$nulls":6},"Quant. =>",192,"Preço Total =>",30086.400000000001]
[]
[" 10 ","Código","Banco","Descrição","Tipo",null,"Und","Quant.","Valor Unit","Total"]
["Composição"," 90776 ","SINAPI","ENCARREGADO GERAL COM ENCARGOS COMPLEMENTARES","SEDI - SERVIÇOS DIVERSOS",null,"H",1,28.41,28.41]
["Composição Auxiliar"," 95401 ","SINAPI","CURSO DE CAPACITAÇÃO PARA ENCARREGADO GERAL (ENCARGOS COMPLEMENTARES) - HORISTA","SEDI - SERVIÇOS DIVERSOS",null,"H",1,0.56000000000000005,0.56000000000000005]
["Insumo"," 00004083 ","SINAPI","ENCARREGADO GERAL DE OBRAS (HORISTA)","Mão de Obra",null,"H",1,25.36,25.36]
["Insumo"," 00037372 ","SINAPI","EXAMES - HORISTA (COLETADO CAIXA - ENCARGOS COMPLEMENTARES)","Outros",null,"H",1,1.1399999999999999,1.1399999999999999]
["Insumo"," 00037373 ","SINAPI","SEGURO - HORISTA (COLETADO CAIXA - ENCARGOS COMPLEMENTARES)","Taxas",null,"H",1,7.0000000000000007E-2,7.0000000000000007E-2]
["Insumo"," 00043463 ","SINAPI","FERRAMENTAS - FAMILIA ENCARREGADO GERAL - HORISTA (ENCARGOS COMPLEMENTARES - COLETADO CAIXA)","Equipamento",null,"H",1,0.11,0.11]
["Insumo"," 00043487 ","SINAPI","EPI - FAMILIA ENCARREGADO GERAL - HORISTA (ENCARGOS COMPLEMENTARES - COLETADO CAIXA)","Equipamento",null,"H",1,1.17,1.17]
[{"$nulls":4},"MO sem LS =>",25.92,"LS =>",0,"MO com LS =>",25.92]
[{"$nulls":4},"Valor do BDI =>",6.6877139999999997,null,"Valor com BDI =>",null,35.1]
[{"$nulls":6},"Quant. =>",192,"Preço Total =>",6739.2]
[]
[]
[{"$nulls":5},"Total sem BDI",null,106130.08]
[{"$nulls":5},"Total do BDI",null,24983.86]
[{"$nulls":5},"Total Geral",null,131113.94]
[]
["_______________________________________________________________\nMorgane de Aguiar Chagas\nSetor de Engenharia"]

{"sheet":"BDI","index":5,"n_rows":29,"n_cols":3,"rows_kept":29,"cut":false,"hidden":false,"merged":[[28,0,28,1],[0,0,0,2],[1,0,1,2],[3,0,3,2],[5,0,5,2],[15,0,15,2]]}
["SERVIÇO: Manutenção Predial - 4ªSR"]
["DOCUMENTO: DETALHAMENTO DA BONIFICAÇÃO E DESPESAS INDIRETAS"]
[]
["FÓRMULA APLICADA"]
[]
["BDI = { [ ( 1 + AC / 100  + R / 100 + SG/100 ) . ( 1 + DF / 100 ) . ( 1 + L / 100 ) / ( 1 - I / 100 ) ] - 1 } . 100"]
[]
["ONDE:"]
["BDI =","Bonificação e Despesas Indiretas"]
["AC =","Administração Central"]
["SG=","Seguros e garantias"]
["DF =","Despesas Financeiras"]
["R =","Riscos"]
["L =","Lucro"]
["I =","Impostos"]
["EXECUÇÃO DE SERVIÇOS"]
[]
["ITEM","DESCRIÇÃO","PERCENTUAIS    (%)"]
[1,"Administração Central",4]
[2,"Seguros e garantias",0.8]
[3,"Riscos",1.27]
[4,"Despesas Financeiras",1.23]
[5,"Lucro",7.4]
[6,"Impostos",{"$f":"SUM(C25:C28)","v":6.65}]
["6.1","PIS",0.65]
["6.2","COFINS",3]
["6.3","ISS",3]
["6.4","IPRB",0]
["BDI",null,{"$f":"ROUND((((1+C19/100+C20/100+C21/100)*(1+C22/100)*(1+C23/100))/(1-C24/100))-1,4)","v":0.2354}]